[Event "new tournament description"]
[Site "France"]
[Date "2018.12.28"]
[Round "8.2"]
[White "BRIET"]
[Black "BELLAHCENE"]
[Result "0-1"]
[TimeControl "15min+3sec"]
[WhiteElo "2261"]
[BlackElo "2472"]

1. e4 {[%clk 00:15:01]} {[%emt 00:00:04]} c5 {[%clk 00:15:06]} 2. Nf3 {[%clk
00:15:03]} {[%emt 00:00:02]} d6 {[%clk 00:15:04]} {[%emt 00:00:05]} 3. d4
{[%clk 00:15:04]} {[%emt 00:00:01]} cxd4 {[%clk 00:15:07]} {[%emt 00:00:01]} 4.
Nxd4 {[%clk 00:15:05]} {[%emt 00:00:01]} Nf6 {[%clk 00:15:09]} 5. Nc3 {[%clk
00:15:07]} {[%emt 00:00:02]} a6 {[%clk 00:15:06]} {[%emt 00:00:06]} 6. Be3
{[%clk 00:15:07]} {[%emt 00:00:03]} Ng4 {[%clk 00:15:07]} {[%emt 00:00:02]} 7.
Bc1 {[%clk 00:15:03]} {[%emt 00:00:07]} Nf6 {[%clk 00:15:10]} 8. Be3 {[%clk
00:15:03]} {[%emt 00:00:03]} e5 {[%clk 00:15:12]} 9. Nb3 {[%clk 00:14:55]}
{[%emt 00:00:12]} Be6 {[%clk 00:15:14]} {[%emt 00:00:01]} 10. f3 {[%clk
00:14:55]} {[%emt 00:00:02]} Nbd7 {[%clk 00:15:17]} {[%emt 00:00:01]} 11. g4
{[%clk 00:14:57]} b5 {[%clk 00:15:15]} {[%emt 00:00:04]} 12. g5 {[%clk
00:14:55]} {[%emt 00:00:04]} b4 {[%clk 00:15:18]} 13. Nd5 {[%clk 00:14:54]}
{[%emt 00:00:05]} Nxd5 {[%clk 00:15:18]} {[%emt 00:00:03]} 14. exd5 {[%clk
00:14:56]} {[%emt 00:00:01]} Bf5 {[%clk 00:15:20]} 15. Bd3 {[%clk 00:14:57]}
{[%emt 00:00:01]} Bxd3 {[%clk 00:15:23]} {[%emt 00:00:01]} 16. Qxd3 {[%clk
00:14:58]} {[%emt 00:00:01]} Be7 {[%clk 00:15:24]} {[%emt 00:00:02]} 17. h4
{[%clk 00:14:11]} {[%emt 00:00:49]} O-O {[%clk 00:15:24]} {[%emt 00:00:04]} 18.
O-O-O {[%clk 00:14:11]} {[%emt 00:00:03]} a5 {[%clk 00:15:26]} 19. Kb1 {[%clk
00:14:09]} {[%emt 00:00:06]} f6 {[%clk 00:15:19]} {[%emt 00:00:10]} 20. g6
{[%clk 00:13:04]} {[%emt 00:01:07]} f5 {[%clk 00:15:12]} {[%emt 00:00:11]} 21.
gxh7+ {[%clk 00:12:59]} {[%emt 00:00:08]} Kh8 {[%clk 00:14:47]} {[%emt
00:00:28]} 22. h5 {[%clk 00:12:45]} {[%emt 00:00:16]} a4 {[%clk 00:14:23]}
{[%emt 00:00:28]} 23. Nd2 {[%clk 00:12:44]} {[%emt 00:00:02]} Qe8 {[%clk
00:13:51]} {[%emt 00:00:38]} 24. Rdg1 {[%clk 00:12:38]} {[%emt 00:00:08]} Qf7
{[%clk 00:13:34]} {[%emt 00:00:21]} 25. Rg6 {[%clk 00:12:00]} {[%emt 00:00:39]}
e4 {[%clk 00:13:05]} {[%emt 00:00:33]} 26. Qe2 {[%clk 00:10:30]} {[%emt
00:01:33]} Ne5 {[%clk 00:13:00]} {[%emt 00:00:08]} 27. Re6 {[%clk 00:10:26]}
{[%emt 00:00:06]} b3 {[%clk 00:12:29]} {[%emt 00:00:35]} 28. cxb3 {[%clk
00:10:12]} {[%emt 00:00:17]} axb3 {[%clk 00:12:31]} 29. a3 {[%clk 00:10:03]}
{[%emt 00:00:12]} exf3 {[%clk 00:08:38]} {[%emt 00:03:56]} 30. Nxf3 {[%clk
00:09:43]} {[%emt 00:00:21]} f4 {[%clk 00:08:40]} {[%emt 00:00:02]} 31. Bd4
{[%clk 00:09:28]} {[%emt 00:00:18]} Qf5+ {[%clk 00:07:12]} {[%emt 00:01:32]} 32.
Ka1 {[%clk 00:09:29]} {[%emt 00:00:02]} Nxf3 {[%clk 00:07:01]} {[%emt
00:00:14]} 33. Bxg7+ {[%clk 00:08:56]} {[%emt 00:00:36]} Kxg7 {[%clk 00:06:31]}
{[%emt 00:00:33]} 34. Rxe7+ {[%clk 00:08:57]} {[%emt 00:00:02]} Kh8 {[%clk
00:06:33]} {[%emt 00:00:01]} 35. Qxf3 {[%clk 00:08:57]} {[%emt 00:00:02]} Rxa3+
{[%clk 00:05:43]} {[%emt 00:00:54]} 36. bxa3 {[%clk 00:08:55]} {[%emt
00:00:05]} Qc2 {[%emt 00:00:59]} 0-1

[ePGN "0.1;DGT LiveChess/2.2.3"]

[Event "new tournament description"]
[Site "France"]
[Date "2018.12.28"]
[Round "9.1"]
[White "GOZZOLI"]
[Black "BELLAHCENE"]
[Result "1/2-1/2"]
[TimeControl "15min+3sec"]
[WhiteElo "2582"]
[BlackElo "2472"]

1. d4 {[%emt 00:00:56]} Nf6 {[%clk 00:14:54]} {[%emt 00:00:10]} 2. Nf3 {[%clk
00:15:07]} e6 {[%clk 00:14:55]} {[%emt 00:00:02]} 3. Bg5 {[%clk 00:15:08]}
{[%emt 00:00:02]} d5 {[%clk 00:14:31]} {[%emt 00:00:26]} 4. e3 {[%clk
00:15:10]} {[%emt 00:00:01]} Nbd7 {[%clk 00:14:31]} {[%emt 00:00:03]} 5. Bd3
{[%clk 00:15:10]} {[%emt 00:00:03]} h6 {[%clk 00:14:19]} {[%emt 00:00:15]} 6.
Bh4 {[%clk 00:15:09]} {[%emt 00:00:04]} g5 {[%clk 00:14:04]} {[%emt 00:00:18]}
7. Bg3 {[%clk 00:15:11]} {[%emt 00:00:01]} Nh5 {[%clk 00:14:06]} 8. Nbd2 {[%clk
00:15:13]} {[%emt 00:00:01]} Nxg3 {[%clk 00:13:22]} {[%emt 00:00:47]} 9. hxg3
{[%clk 00:15:15]} Bg7 {[%clk 00:13:21]} {[%emt 00:00:04]} 10. c3 {[%clk
00:15:17]} {[%emt 00:00:01]} c5 {[%clk 00:13:11]} {[%emt 00:00:13]} 11. a3
{[%clk 00:15:17]} {[%emt 00:00:03]} a6 {[%clk 00:12:57]} {[%emt 00:00:17]} 12.
b4 {[%clk 00:15:18]} {[%emt 00:00:02]} b6 {[%clk 00:12:47]} {[%emt 00:00:14]}
13. g4 {[%clk 00:15:12]} {[%emt 00:00:09]} Qc7 {[%clk 00:12:10]} {[%emt
00:00:41]} 14. Rc1 {[%clk 00:15:12]} {[%emt 00:00:03]} Bb7 {[%clk 00:10:56]}
{[%emt 00:01:17]} 15. O-O {[%clk 00:15:03]} {[%emt 00:00:12]} O-O {[%clk
00:10:53]} {[%emt 00:00:06]} 16. Qe2 {[%clk 00:15:01]} {[%emt 00:00:05]} c4
{[%clk 00:10:41]} {[%emt 00:00:15]} 1/2-1/2

[Event "new tournament description"]
[Site "France"]
[Date "2018.12.28"]
[Round "9.2"]
[White "DAESCHLER"]
[Black "LERCH"]
[Result "1/2-1/2"]
[TimeControl "15min+3sec"]
[WhiteElo "2084"]
[BlackElo "2420"]

1. d4 {[%clk 00:15:05]} Nf6 {[%clk 00:15:05]} {[%emt 00:00:02]} 2. c4 {[%clk
00:15:07]} e6 {[%clk 00:15:07]} 3. g3 {[%clk 00:15:09]} Be7 {[%clk 00:15:08]}
{[%emt 00:00:02]} 4. Bg2 {[%clk 00:15:09]} {[%emt 00:00:03]} d5 {[%clk
00:15:10]} 5. Nf3 {[%clk 00:15:11]} O-O {[%clk 00:15:11]} {[%emt 00:00:02]} 6.
O-O {[%clk 00:15:12]} {[%emt 00:00:02]} dxc4 {[%clk 00:15:12]} {[%emt
00:00:02]} 7. Qc2 {[%clk 00:15:14]} {[%emt 00:00:01]} a6 {[%clk 00:15:14]}
{[%emt 00:00:01]} 8. a4 {[%clk 00:15:16]} Nc6 {[%clk 00:15:16]} 9. Qxc4 {[%clk
00:15:16]} {[%emt 00:00:03]} Qd5 {[%clk 00:15:18]} {[%emt 00:00:01]} 10. Nbd2
{[%clk 00:15:18]} {[%emt 00:00:01]} Rd8 {[%clk 00:15:20]} 11. e3 {[%clk
00:15:19]} Qh5 {[%clk 00:12:45]} {[%emt 00:02:38]} 12. h3 {[%clk 00:15:06]}
{[%emt 00:00:16]} Bd7 {[%clk 00:12:45]} {[%emt 00:00:04]} 13. Qe2 {[%clk
00:14:24]} {[%emt 00:00:45]} Nd5 {[%clk 00:10:45]} {[%emt 00:02:03]} 14. Nb3
{[%clk 00:13:44]} {[%emt 00:00:43]} Be8 {[%clk 00:09:27]} {[%emt 00:01:21]} 15.
e4 {[%clk 00:12:13]} {[%emt 00:01:34]} Ndb4 {[%clk 00:09:20]} {[%emt 00:00:10]}
16. Bf4 {[%clk 00:12:07]} {[%emt 00:00:09]} Bd6 {[%clk 00:08:21]} {[%emt
00:01:02]} 17. Be3 {[%clk 00:08:41]} {[%emt 00:03:29]} f6 {[%clk 00:08:09]}
{[%emt 00:00:15]} 18. Rac1 {[%clk 00:08:30]} {[%emt 00:00:15]} Qf7 {[%clk
00:06:47]} {[%emt 00:01:25]} 19. Nc5 {[%clk 00:07:32]} {[%emt 00:01:01]} Rab8
{[%clk 00:06:10]} {[%emt 00:00:40]} 20. Rfd1 {[%clk 00:07:17]} {[%emt
00:00:18]} a5 {[%clk 00:05:42]} {[%emt 00:00:31]} 21. h4 {[%clk 00:05:50]}
{[%emt 00:01:29]} b6 {[%clk 00:05:32]} {[%emt 00:00:14]} 22. Nxe6 {[%clk
00:05:42]} {[%emt 00:00:11]} Qxe6 {[%clk 00:05:33]} {[%emt 00:00:01]} 23. d5
{[%clk 00:05:43]} {[%emt 00:00:02]} Qe7 {[%clk 00:04:21]} {[%emt 00:01:15]} 24.
dxc6 {[%clk 00:05:39]} {[%emt 00:00:07]} Bf7 {[%clk 00:03:37]} {[%emt
00:00:47]} 25. Nd4 {[%clk 00:05:28]} {[%emt 00:00:14]} Qe8 {[%clk 00:02:55]}
{[%emt 00:00:46]} 26. Nf5 {[%clk 00:05:12]} {[%emt 00:00:19]} Bf8 {[%clk
00:02:47]} {[%emt 00:00:11]} 27. Qg4 {[%clk 00:04:28]} {[%emt 00:00:47]} Bh5
{[%clk 00:02:33]} {[%emt 00:00:18]} 28. Rxd8 {[%clk 00:04:11]} {[%emt
00:00:20]} Rxd8 {[%clk 00:02:31]} {[%emt 00:00:05]} 29. Qf4 {[%clk 00:04:00]}
{[%emt 00:00:13]} Rc8 {[%clk 00:02:31]} {[%emt 00:00:03]} 30. Bf1 {[%clk
00:03:28]} {[%emt 00:00:35]} Bf7 {[%clk 00:02:28]} {[%emt 00:00:07]} 31. Bd4
{[%clk 00:03:11]} {[%emt 00:00:20]} Nxc6 {[%clk 00:02:16]} {[%emt 00:00:15]} 32.
Nh6+ {[%clk 00:01:50]} {[%emt 00:01:24]} gxh6 {[%clk 00:01:58]} {[%emt
00:00:21]} 33. Qg4+ {[%clk 00:01:52]} Bg6 {[%clk 00:02:01]} {[%emt 00:00:02]}
34. Bb5 {[%clk 00:00:56]} {[%emt 00:00:59]} h5 {[%clk 00:01:49]} {[%emt
00:00:14]} 35. Qh3 {[%clk 00:00:32]} {[%emt 00:00:26]} Nxd4 {[%clk 00:01:38]}
{[%emt 00:00:15]} 36. Bxe8 {[%clk 00:00:32]} {[%emt 00:00:04]} Rxe8 {[%clk
00:01:36]} {[%emt 00:00:05]} 37. Rxc7 {[%clk 00:00:24]} {[%emt 00:00:11]} Bxe4
{[%clk 00:01:00]} {[%emt 00:00:39]} 38. Qd7 {[%clk 00:00:22]} {[%emt 00:00:04]}
Nf3+ {[%clk 00:00:29]} {[%emt 00:00:34]} 39. Kf1 {[%clk 00:00:24]} {[%emt
00:00:01]} Re7 {[%clk 00:00:21]} {[%emt 00:00:11]} 40. Qd8 {[%clk 00:00:08]}
{[%emt 00:00:18]} Nh2+ {[%clk 00:00:17]} {[%emt 00:00:07]} 41. Kg1 {[%clk
00:00:10]} {[%emt 00:00:01]} Nf3+ {[%emt 00:00:14]} 42. Kf1 1/2-1/2